Cogmind - Beta 17 @@@ ROGUE MODE // 2026.07.02 @ 22:00:44 Player: Xo-X0-100101 Result: Destroyed by R1-PC5(R) with Subdweller Beam Cannon Performance ------------- Evolutions (0) 0 Regions Visited (3) 600 Robots Destroyed (20) 100 Value Destroyed (475) 475 Prototype IDs (0) 0 Alien Tech Used (0) 0 Bonus (0) 0 TOTAL SCORE: 1175 Bonus ------- None Cogmind --------- Core Integrity 0/250 Matter 105/300 Energy 125/125 System Corruption 15% Temperature Cool (9) Movement Treading (160) Location -10/Subcaves Parts ------- > --- POWER (1) -------- Light Ion Engine > --- PROPULSION (2) --- Light Treads Light Treads > --- UTILITY (2) ------ Large Storage Unit > --- WEAPON (2) ------- Heavy Assault Rifle Barrage Gun > --- INVENTORY (15) --- Light Nuclear Core Light Treads Light Treads Wheel Compact Wheel Compact Wheel Compact Wheel Improved Heat Sink Large Storage Unit Core Shielding Light Armor Plating Peak State ------------ > --- POWER ------------ Light Ion Engine > --- PROPULSION ------- Light Treads Light Treads > --- UTILITY ---------- Large Storage Unit Light Armor Plating > --- WEAPON ----------- Heavy Assault Rifle Subdweller Machine Gun > --- INVENTORY -------- Light Ion Engine Light Nuclear Core Light Treads Light Treads Wheel Compact Wheel Compact Wheel Compact Wheel Improved Heat Sink Large Storage Unit Core Shielding Light Armor Plating [Rating: 10] Favorites ----------- Power Light Ion Engine Engine Light Ion Engine Propulsion Light Treads Treads Light Treads Wheel Compact Wheel Utility Large Storage Unit Storage Large Storage Unit Protection Light Armor Plating Weapon Light Assault Rifle Ballistic Gun Light Assault Rifle Launcher Grenade Launcher Build | -11 -10 -10 -10 ------- Run | Yrd Mat Min Sub Slots Evolved . | . . . . Power . | . . . . Propulsion . | . . . . Utility . | . . . . Weapon . | . . . . Parts Attached 22 | 6 1 12 3 Power 4 | 1 . 2 1 Engine 4 | 1 . 2 1 Core . | . . . . Reactor . | . . . . Propulsion 7 | 2 . 5 . Treads 5 | 2 . 3 . Leg . | . . . . Wheel 2 | . . 2 . Hover . | . . . . Flight . | . . . . Utility 3 | 1 1 1 . Device . | . . . . Storage 2 | 1 1 . . Processor . | . . . . Hackware . | . . . . Protection 1 | . . 1 . Artifact . | . . . . Weapon 8 | 2 . 4 2 Energy Gun . | . . . . Energy Cannon . | . . . . Ballistic Gun 7 | 2 . 3 2 Ballistic Cannon . | . . . . Launcher 1 | . . 1 . Special Weapon . | . . . . Impact Weapon . | . . . . Slashing Weapon . | . . . . Piercing Weapon . | . . . . Special Melee Weapon . | . . . . Unidentified Prototypes . | . . . . Parts Lost 10 | . 1 7 2 Power 3 | . . 2 1 Propulsion 1 | . . 1 . Utility 2 | . 1 . 1 Weapon 4 | . . 4 . Highest Loss Streak 6 | . 1 6 1 To Critical Strikes . | . . . . Average Backups 9 | 1 7 10 11 Power 1 | . 1 1 1 Propulsion 4 | . 2 4 6 Utility 2 | . 1 2 4 Weapon 1 | . 2 1 . Tool/Special . | . . . . Unused Backups 9 | . 1 . 8 Power 1 | . . . 1 Propulsion 3 | . . . 3 Utility 4 | . . . 4 Weapon 1 | . 1 . . Tool/Special . | . . . . Average Slot Usage (%) 92 | . 96 92 88 Engine 13 | . 14 13 13 Treads 27 | . 28 27 28 Storage 14 | . 14 14 14 Protection 8 | . 10 8 4 Ballistic Gun 27 | . 28 26 27 Peak Build Rating 10 | 6 8 9 10 Average Rating 8 | 4 7 8 9 On Entrance 5 | . 6 7 9 Avg Prop Armor Cover (%) . | . . . . Naked Turns . | . . . . Heaviest Build 33 | 12 28 30 33 Greatest Support 40 | 40 40 40 40 Greatest Overweight (x) 1 | . . 1 . Average Overweight (x) . | . . . . Largest Inventory Capacity 15 | 8 15 15 15 Average Capacity 13 | 6 11 15 15 Most Carried 13 | 4 9 12 13 Average Carried 9 | 1 7 10 11 Final Capacity 15 | 8 15 15 15 Final Carried 12 | 4 9 12 11 Class Distribution -------------------- 53% | Scavenger-Mutant 46% | Mutant Dominant Class ---------------- Mutant | -10/Materials Scavenger-Mutant | -10/Mines Scavenger-Mutant | -10/Subcaves Resources | -11 -10 -10 -10 ----------- Run | Yrd Mat Min Sub Matter Collected 795 | 174 193 303 125 Remotely . | . . . . Salvage Created 705 | . 347 103 255 Parts 42 | . 21 3 18 Haulers Intercepted 1 | . 1 . . Recyclers Shooed 1 | . . 1 . Parts Field Recycled . | . . . . Retrieved Matter . | . . . . Parts Self-Destructed 8 | . . . 8 Prevented . | . . . . Parts Restored . | . . . . Kills | -11 -10 -10 -10 ------- Run | Yrd Mat Min Sub Combat Hostiles Destroyed 25 | . 10 10 5 Guns 24 | . 10 9 5 AOE 1 | . . 1 . Classes Destroyed 7 | . 4 1 2 Hauler 1 | . 1 . . Watcher 1 | . 1 . . Swarmer 9 | . 6 3 . Grunt 4 | . 4 . . Sentry 1 | . . . 1 Subdweller 4 | . . . 4 Assembled 7 | . . 7 . Best Kill Streak 3 | . 3 3 1 Combat Bots Only 3 | . 3 3 1 Max Kills in Single Turn 2 | . 2 1 1 Gunslinging 1 | . 1 . . Exploded 1 | . . 1 . Melee . | . . . . Uniques/NPCs Destroyed . | . . . . Combat | -11 -10 -10 -10 -------- Run | Yrd Mat Min Sub Hostile Shots Fired 162 | . 68 58 36 Missed 51 | . 20 19 12 Hits 111 | . 48 39 24 Melee 12 | . . 12 . Projectile 99 | . 48 27 24 Critical Strikes 6 | . 2 . 4 Damage Taken 1598 | . 513 576 509 Core 264 | . 66 91 107 Absorbed by Shields . | . . . . Core Remaining (%) 100 | 100 . . . Volleys Fired 138 | . 51 45 42 Largest 2 | . 2 2 2 Hottest 53 | . 40 50 53 Shots Fired 249 | . 102 67 80 Gun 246 | . 102 64 80 Cannon . | . . . . Launcher 3 | . . 3 . Special . | . . . . Kinetic 246 | . 102 64 80 Thermal . | . . . . Explosive 3 | . . 3 . Electromagnetic . | . . . . Robot Hit Streak 13 | . 10 4 13 Robot Miss Streak 8 | . 8 6 2 Penetration Max . | . . . . Secondary Targets 3 | . 3 . . Max Gunslinging Chain 1 | . 1 . . Shots Hit Robots 125 | . 63 24 38 Core Hits 63 | . 26 27 10 Critical Kills . | . . . . Critical Parts Destroyed . | . . . . Critical Strikes . | . . . . Melee Attacks . | . . . . Impact . | . . . . Slashing . | . . . . Piercing . | . . . . Sneak Attacks . | . . . . Combat Hostiles . | . . . . Follow-up Attacks . | . . . . Damage Inflicted 1364 | . 506 377 481 Guns 1243 | . 506 256 481 Cannons . | . . . . Explosions 121 | . . 121 . Melee . | . . . . Ramming . | . . . . Kinetic 1243 | . 506 256 481 Thermal . | . . . . Explosive 121 | . . 121 . Electromagnetic . | . . . . Impact . | . . . . Slashing . | . . . . Piercing . | . . . . Highest Corruption 15 | . . 15 15 Average Corruption 14 | . . 14 15 Corruption Purged . | . . . . Corruption Blocked . | . . . . Effects 81 | . . 49 32 Message Errors 17 | . . 9 8 Matter Fused 18 | . . 11 7 Heat Flow Errors 12 | . . 10 2 Energy Discharges 7 | . . 3 4 Parts Fused 1 | . . 1 . Data Loss (minor) 10 | . . 7 3 Data Loss (major) 6 | . . 3 3 Misfires 4 | . . 2 2 Alerts 3 | . . 2 1 Weapon Failures 3 | . . 1 2 Overload Shots . | . . . . Overflow Damage 2 | . . 2 . Projectiles . | . . . . Explosions 2 | . . 2 . Melee . | . . . . Knockbacks . | . . . . Impact . | . . . . Kinetic . | . . . . Secondary . | . . . . Self-Inflicted Damage 3 | . . 3 . Shots 1 | . . 1 . Rammed . | . . . . Targets Rammed . | . . . . Kicked . | . . . . Crushed . | . . . . Highest Temperature 254 | . 47 254 231 Average Temperature 55 | . 9 84 116 Received Heat Transfer 416 | . 237 29 150 Effects 1 | . . . 1 Energy Bleed 1 | . . . 1 Siege Activations . | . . . . Martial Activations . | . . . . Shielding Activations . | . . . . Robots Disrupted . | . . . . Combat Hostiles . | . . . . Robots Corrupted . | . . . . Combat Hostiles . | . . . . Parts Fried . | . . . . Impact Corruptions . | . . . . Robots Melted . | . . . . Combat Hostiles . | . . . . Parts Melted 1 | . . . 1 Heat Transferred . | . . . . Parts Sabotaged . | . . . . Parts Stolen . | . . . . Parts Stripped . | . . . . Power Chain Reactions . | . . . . Alert | -11 -10 -10 -10 ------- Run | Yrd Mat Min Sub Maximum Alert Level . | . . . . Low Security (%) 100 | 100 100 100 . Level 1 . | . . . . Level 2 . | . . . . Level 3 . | . . . . Level 4 . | . . . . Level 5 . | . . . . High Security . | . . . . Max Security . | . . . . Peak Influence 97 | . 97 33 . Initial . | . . . . Average 8 | . 26 1 . Influence Increases 376 | . 269 87 20 Destroy 0b10 Robot/C 280 | . 200 60 20 Destroy 0b10 Robot/NC 10 | . 10 . . Destroy Leader 54 | . 44 10 . Allied During Kill 3 | . . 3 . Successful Hack 15 | . 15 . . Destroy Structure 14 | . . 14 . Influence Decreases 376 | . 269 87 20 Time Decay 318 | . 259 39 20 Lost Part 18 | . 10 8 . Lost Ally 40 | . . 40 . Squads Dispatched . | . . . . Investigation . | . . . . Extermination . | . . . . Reinforcement . | . . . . Assault . | . . . . Garrison . | . . . . Intercept . | . . . . Searches Triggered . | . . . . Construction Impeded . | . . . . Haulers Reinforced . | . . . . Active Scanning Responses . | . . . . Cargo Convoy Interrupts . | . . . . Stealth | -11 -10 -10 -10 --------- Run | Yrd Mat Min Sub Distress Signals 2 | . 2 . . Communications Jammed . | . . . . Distress Signals . | . . . . Times Spotted 32 | . 14 12 6 Peak Tracking Total 4 | . 4 4 2 Tactical Retreats 1 | . . 1 . Traps | -11 -10 -10 -10 ------- Run | Yrd Mat Min Sub Traps Triggered . | . . . . Indirectly . | . . . . Trap Hack Attempts . | . . . . Triggered . | . . . . Disarmed . | . . . . Reprogrammed . | . . . . Reused . | . . . . Traps Extracted . | . . . . Installed . | . . . . Triggered . | . . . . Machines | -11 -10 -10 -10 ---------- Run | Yrd Mat Min Sub Machines Disabled . | . . . . Max in Single Turn . | . . . . Machines Repaired . | . . . . Machines Dismantled . | . . . . Machines Sabotaged . | . . . . Overloaded Fab Kills . | . . . . Hacking | -11 -10 -10 -10 --------- Run | Yrd Mat Min Sub Machines Accessed 5 | . 4 . 1 Terminals 2 | . 2 . . Fabricators . | . . . . Repair Stations 1 | . 1 . . Recycling Units 1 | . 1 . . Scanalyzers . | . . . . Garrison Access . | . . . . Total Hacks 15 | . 10 . 5 Successful 10 | . 5 . 5 Failed 5 | . 5 . . Catastrophic . | . . . . Database Lockouts . | . . . . Manual 4 | . 4 . . Terminals 6 | . 6 . . Fabricators . | . . . . Repair Stations 3 | . 3 . . Recycling Units 1 | . 1 . . Scanalyzers . | . . . . Garrison Access . | . . . . Terminal Hacks 8 | . 3 . 5 Record 5 | . . . 5 Part Schematic 1 | . 1 . . Branch Access Points 1 | . 1 . . Alert Level 1 | . 1 . . Fabricator Hacks . | . . . . Repair Station Hacks 1 | . 1 . . Refit 1 | . 1 . . Recycling Unit Hacks 1 | . 1 . . Report Inventory 1 | . 1 . . Scanalyzer . | . . . . Garrison Access Hacks . | . . . . Unauthorized Hacks . | . . . . Terminals . | . . . . Fabricators . | . . . . Repair Stations . | . . . . Recycling Units . | . . . . Scanalyzers . | . . . . Garrison Access . | . . . . Data Cores Recovered . | . . . . Used . | . . . . Hacking Detections 3 | . 3 . . Full Trace Events . | . . . . Feedback Events . | . . . . Feedback Blocked . | . . . . Robot Schematics Acquired . | . . . . Robots Built . | . . . . Authchips . | . . . . Time . | . . . . Total Robot Build Rating . | . . . . Part Schematics Acquired 1 | . 1 . . Parts Built . | . . . . Authchips . | . . . . Time . | . . . . Total Part Build Rating . | . . . . Part Studies Acquired . | . . . . Parts Repaired . | . . . . Time . | . . . . Parts Recycled . | . . . . Recycled Matter . | . . . . Retrieved Matter . | . . . . Retrieved Components . | . . . . Parts Scanalyzed . | . . . . Part Schematics Acquired . | . . . . Parts Damaged . | . . . . Bothacking | -11 -10 -10 -10 ------------ Run | Yrd Mat Min Sub Used RIF Installer . | . . . . Robots Hacked . | . . . . Non-combat . | . . . . Combat . | . . . . Robot Hacks Applied . | . . . . Relay Couplers Released . | . . . . Fabnet Peak Effective % . | . . . . Robots Rewired 1 | . . 1 . Allies Hacked . | . . . . Hacks Repelled . | . . . . Allies | -11 -10 -10 -10 -------- Run | Yrd Mat Min Sub Total Allies 3 | . . 3 . Largest Group 3 | . . 3 . Highest-Rated Group 40 | . . 40 . Highest-Rated Ally 16 | . . 16 . Total Orders . | . . . . Ally Attacks 7 | . . 7 . Total Damage 47 | . . 47 . Kills . | . . . . Allies Corrupted . | . . . . Allies Melted . | . . . . Intel | -11 -10 -10 -10 ------- Run | Yrd Mat Min Sub Active Infowar (turns) . | . . . . Robot Analysis Total . | . . . . Derelict Logs Recovered 2 | . . 2 . Drone Launches . | . . . . Drone Recoveries . | . . . . Exploration | -11 -10 -10 -10 ------------- Run | Yrd Mat Min Sub Turns Passed 3511 | 94 821 1839 757 Spaces Moved 1856 | 53 416 1018 369 Core 3 | 3 . . . Treads 1823 | 50 416 988 369 Legs . | . . . . Wheels 30 | . . 30 . Hover . | . . . . Flight . | . . . . Fastest Speed 50 | 50 160 90 160 Average Speed 158 | 153 160 158 160 Slowest Speed 240 | 160 160 240 160 Overloaded Moves . | . . . . Propulsion Burnouts . | . . . . Robots Hopped . | . . . . Potential Cave-ins . | . . . . Cave-ins Triggered . | . . . . Exploration Rate (%) 46 | 4 62 98 22 Regions Visited 3 Branch Regions 2 Pre-discovered Areas 1 | . . 1 . Known Exits Taken 1 | . 1 . . Unknown Exits Taken 2 | 1 . 1 . Scrap Searched 4 | . . 1 3 Spaces Dug . | . . . . Terrain Destroyed 14 | . . 14 . Melee . | . . . . Projectile . | . . . . AOE 14 | . . 14 . Terrain Rammed . | . . . . Walls Destroyed . | . . . . Machines Disabled . | . . . . Actions | -11 -10 -10 -10 --------- Run | Yrd Mat Min Sub Total 2202 | 63 491 1189 459 Wait 139 | 1 16 80 42 Move 1853 | 52 415 1017 369 Hop . | . . . . Pick Up 23 | 4 6 11 2 Fast Attach 7 | 6 . 1 . Attach 11 | . . 9 2 Detach 2 | . . 2 . Swap 7 | . 1 5 1 Drop 4 | . 2 1 1 Fire 138 | . 51 45 42 Melee . | . . . . Ram . | . . . . Kick . | . . . . Crush . | . . . . Escape Stasis . | . . . . Rewire 18 | . . 18 . Trap . | . . . . Miscellaneous . | . . . . Route ------- -11/Scrapyard -10/Materials (discovered 4 exits: [*Mat x2] / *Min x2) -10/Mines (discovered 3 exits: [*Mat x2] / *Sub) -10/Subcaves History --------- Turn | Location | Event 2 | -11/Scrapyard | Discovered new exit (range 16) 95 | -11/Scrapyard | Entered Materials 232 | -10/Materials | Discovered new exit (range 7) 291 | -10/Materials | Discovered new exit (range 12) 305 | -10/Materials | Build established: Mutant 423 | -10/Materials | Discovered new exit (range 10) 540 | -10/Materials | Discovered new exit (range 15) 630 | -10/Materials | Identified exit to Mines 695 | -10/Materials | Derelicts attacked the area 916 | -10/Materials | Entered Mines 973 | -10/Mines | Met a Derelict bent on vengeance 1005 | -10/Mines | Learned location of Storage (-8) 1112 | -10/Mines | Learned Materials terminal intel 1191 | -10/Mines | Assembled infested the area 1196 | -10/Mines | Assisted by a Guerilla fighting off Assembled 1417 | -10/Mines | Discovered new exit (range 7) 1561 | -10/Mines | System corruption reached 10% 1602 | -10/Mines | Lost 6 parts (1p1n4w) 1623 | -10/Mines | Joined a pair of Derelicts in attacking an 0b10 outpost 1625 | -10/Mines | Core integrity fell below 50% 1784 | -10/Mines | Assisted by bots powering up and referring to "LRC-V3" 1816 | -10/Mines | Discovered new exit (range 15) 1915 | -10/Mines | Lost 3 allies 1926 | -10/Mines | Build established: Scavenger-Mutant 1967 | -10/Mines | Discovered new exit (range 6) 2755 | -10/Mines | Entered Subcaves 2756 | -10/Subcaves | Approached by a straggling Scientist 2924 | -10/Subcaves | Core integrity fell below 20% 2985 | -10/Subcaves | Disturbed a concealed Subdweller 3224 | -10/Subcaves | Visited Clippyterm 3229 | -10/Subcaves | Learned Factory fabricator intel 3229 | -10/Subcaves | Learned Research security intel 3512 | -10/Subcaves | Destroyed by R1-PC5(R) with Subdweller Beam Cannon Last Messages --------------- apprentices. 03252_ TQ83GFV54CNB=2I UAT|MVXRKJYP, 9XB&UA 03274_ System corrupted: Component data lost. 03284_ S7-HY5(u) tweaks Twisted Machinery. 03299_ System corrupted: Matter fused (-6). 03313_ S7-HY5(u) builds Twisted Machinery. 03320_ &CHQOZ4ZC9BY&QBR VRF 03340_ %8H2VXKUKBS29BS PMJDZOD2DPEG W9LHQ 03357_ System corrupted: Energy discharge (-43). 03374_ System corrupted: Energy discharge (-48). 03396_ System corrupted: Matter fused (-7). 03412_ System corrupted: Substantial component data lost. 03444_ System corrupted: Energy discharge (-37). 03459_ 8BB%T5%=VE|JA,DXI6>:| RU 03485_ System corrupted: Component data lost. 03504_ H6-Q3Q(R) destroyed. 03508_ System corrupted: Matter fused (-8). 03511_ R1-PC5(R) affixes Scrap Shield Fragment to Scrap Shield. Map ----- +----------------------------------------------------+ | ?????????????????????????????????????????????????? | | ?????????????????????????????????????????????????? | | ?????????????????????????????????????????????????? | | ?????????????????????????????????????????????????? | | ?????????????????????????????????????????????????? | | ?????????????????????????????????????????????????? | | ?????????????????????????????????????????????????? | | ?????????????????????????????????????????????????? | | ?????????????????????????????????????????????????? | | ?????????????????????????????????????????????????? | | ????????????????????????? ??????????????????????? | | ???????????????????????# ?????????????????????? | | ???????????????????????# % ?????????????????????? | | ??????????????????????## ?????????????????????? | | ?????????????????????## % ?????????? #????????? | | ?????????????????????# #???????? ???????? | | ?????????????????????# ####??? ???????? | | ?????????????????????# ##? ???????? | | ?????????????????????# % ?? ????????? | | ??????????????????????% #? #?????????? | | ###????????????????????? ## #?????????? | | ##????????????????????? ??????????? | | ####??????????????????? #????????????? | | #????????????????????# #?????????????? | | ##????????????????##### ### #???????? | | ##????????????????## @## #????????? | | #????????????????## R!%* ### ##????????? | | #????????????????# &&= #???? #?????????? | | ##???????????????# ##??????? #????????? | | ##??????????????# ##??????????????????? | | #??????????????# #####???????????????? | | ##??????????????# # ###?????????????? | | #???????????????# ##????????????? | | #??????######???## ## # #????????????? | | ####???# #????# ### ### #????????????? | | ##??# ##???# ?##### ##????????????? | | #### ##??# ##???# #?????????????? | | ## #### #???# ##????????????? | | ## ### ##??## #????????????? | | #### ### # #?## #????????????? | | ####??## #### # #??# #????????????? | | #??????## ### #### ##???????????? | | #???????###?# ## #???????????? | | #??????????# ### #???????????? | | ##??????????########?## ## #???????????? | | #?????????????????????## #### #???????????? | | ???????????????????????########??### #?????????? | | ????????????????????????????????????# #????????? | | ?????????????????????????????????????####????????? | | ?????????????????????????????????????????????????? | +----------------------------------------------------+ Best States ------------- Heat Dissipation 25 Energy Generation 10 Energy Capacity 250 Matter Stores 300 Matter Capacity 300 Sight Range 16 Terrain Scan Density 10 Armor Coverage 150 Evasion (%) 42 Recoil Reduction 2 Item Schematics ----------------- Lgt. Treads | -10/Materials | Hacked Robot Schematics ------------------ None Fabricated ------------ Nothing Repaired ---------- Nothing Studied --------- None Alien Tech Used ----------------- None Achievements -------------- None Challenges ------------ None Game ------ Seed FireCompactCyclogen Manual? 0 Play Time 00:23:56 Cumulative 51.2 hours Start 2026.07.02 @ 20:53:50 End 2026.07.02 @ 22:00:44 Sessions 3 Manual Loads 0 Difficulty Rogue Special Mode None Game No. 72 Rogue 40 Adventurer 32 Explorer 0 Win Type - Total 0 Types 0/0/0/0/0/0/0/0/0/0 Lore% 24 Gallery% 25 Achievement% 21 Wizard Run 0 Options --------- Layout 1 ASCII 0 Keyboard 0 Movement Mouse Keybinds 0 Fullscreen 1 Font 24/Tallcaps Map View 50x35 Zoom Use 1% Tactical HUD 1 Map Filters NONE Filters NONE Steam 1 RUN: 0268841f-de6f-456a-b2f4-1559924f281a